[Event "Titled Tuesday Blitz August 1 Late 2023"]
[White "Manukian, Artak"]
[Black "Morefield, Jason"]
[WhiteFideId "13301373"]
[BlackFideId "30920825"]
[WhiteElo "2472"]
[BlackElo "2684"]
[Result "1-0"]
[Round "2"]
[TimeControl "180+1"]
[Date "2023.08.01"]
[WhiteClock "0:00:44"]
[BlackClock "0:00:02"]
[Board "60"]

1. e4 {[%clk 0:02:58]}  c5 {[%clk 0:02:58]} 2. Nf3 {[%clk 0:02:57]}  d6 {[%clk 0:02:58]} 3. Bb5+ {[%clk 0:02:56]}  Bd7 {[%clk 0:02:58]} 4. Bxd7+ {[%clk 0:02:56]}  Nxd7 {[%clk 0:02:59]} 5. c4 {[%clk 0:02:57]}  Ngf6 {[%clk 0:02:58]} 6. Nc3 {[%clk 0:02:58]}  g6 {[%clk 0:02:57]} 7. d3 {[%clk 0:02:58]}  Bg7 {[%clk 0:02:58]} 8. O-O {[%clk 0:02:59]}  O-O {[%clk 0:02:58]} 9. Bg5 {[%clk 0:02:59]}  a6 {[%clk 0:02:58]} 10. a4 {[%clk 0:02:58]}  Ne5 {[%clk 0:02:56]} 11. Ne1 {[%clk 0:02:50]}  Nc6 {[%clk 0:02:52]} 12. Nc2 {[%clk 0:02:49]}  h6 {[%clk 0:02:46]} 13. Be3 {[%clk 0:02:48]}  Nd7 {[%clk 0:02:42]} 14. f4 {[%clk 0:02:45]}  f5 {[%clk 0:02:37]} 15. h4 {[%clk 0:02:36]}  e6 {[%clk 0:02:36]} 16. h5 {[%clk 0:02:36]}  Qe8 {[%clk 0:02:30]} 17. Rf3 {[%clk 0:02:30]}  Kh7 {[%clk 0:02:17]} 18. hxg6+ {[%clk 0:02:07]}  Qxg6 {[%clk 0:02:17]} 19. Kh2 {[%clk 0:01:57]}  Qh5+ {[%clk 0:02:01]} 20. Rh3 {[%clk 0:01:56]}  Qxd1 {[%clk 0:02:01]} 21. Rxd1 {[%clk 0:01:57]}  Bxc3 {[%clk 0:01:56]} 22. bxc3 {[%clk 0:01:57]}  Nf6 {[%clk 0:01:56]} 23. e5 {[%clk 0:01:48]}  dxe5 {[%clk 0:01:51]} 24. Bxc5 {[%clk 0:01:44]}  Ng4+ {[%clk 0:01:47]} 25. Kg1 {[%clk 0:01:42]}  Rg8 {[%clk 0:01:44]} 26. fxe5 {[%clk 0:01:40]}  Ncxe5 {[%clk 0:01:38]} 27. Nd4 {[%clk 0:01:36]}  Rg6 {[%clk 0:01:32]} 28. Nf3 {[%clk 0:01:29]}  Nxf3+ {[%clk 0:01:30]} 29. Rxf3 {[%clk 0:01:30]}  Rag8 {[%clk 0:01:27]} 30. Rd2 {[%clk 0:01:29]}  Ne5 {[%clk 0:01:16]} 31. Re3 {[%clk 0:01:24]}  Nd7 {[%clk 0:01:11]} 32. Bd6 {[%clk 0:01:21]}  Kg7 {[%clk 0:00:47]} 33. c5 {[%clk 0:01:13]}  Kf7 {[%clk 0:00:47]} 34. d4 {[%clk 0:01:13]}  Nf6 {[%clk 0:00:45]} 35. c4 {[%clk 0:01:09]}  Ne4 {[%clk 0:00:42]} 36. Rb2 {[%clk 0:01:08]}  Ke8 {[%clk 0:00:40]} 37. Reb3 {[%clk 0:01:05]}  R8g7 {[%clk 0:00:24]} 38. Be5 {[%clk 0:01:00]}  Rg8 {[%clk 0:00:12]} 39. Rxb7 {[%clk 0:00:58]}  Nf6 {[%clk 0:00:07]} 40. c6 {[%clk 0:00:52]}  f4 {[%clk 0:00:03]} 41. Ra7 {[%clk 0:00:46]}  Kf8 {[%clk 0:00:02]} 42. Rb8+ {[%clk 0:00:44]}  Ne8 {[%clk 0:00:02]} 43. Bd6# {[%clk 0:00:44]} 1-0


[Site "https://www.chess.com"]

[Event "Titled Tuesday Blitz August 1 Late 2023"]
[White "Schnaider, Ilan"]
[Black "Tworuszka, Michal"]
[WhiteFideId "169013"]
[BlackFideId "1117858"]
[WhiteElo "2682"]
[BlackElo "2455"]
[Result "1-0"]
[Round "2"]
[TimeControl "180+1"]
[Date "2023.08.01"]
[WhiteClock "0:02:25"]
[BlackClock "0:01:14"]
[Board "61"]

1. e4 {[%clk 0:03:00]}  c5 {[%clk 0:02:59]} 2. Nf3 {[%clk 0:03:01]}  e6 {[%clk 0:02:59]} 3. d4 {[%clk 0:03:01]}  cxd4 {[%clk 0:02:59]} 4. Nxd4 {[%clk 0:03:01]}  Nc6 {[%clk 0:03:00]} 5. Nc3 {[%clk 0:03:02]}  Qc7 {[%clk 0:02:59]} 6. Qd3 {[%clk 0:03:02]}  a6 {[%clk 0:02:57]} 7. Nxc6 {[%clk 0:03:02]}  bxc6 {[%clk 0:02:57]} 8. Qg3 {[%clk 0:03:02]}  Qxg3 {[%clk 0:02:57]} 9. hxg3 {[%clk 0:03:03]}  d5 {[%clk 0:02:56]} 10. g4 {[%clk 0:03:02]}  Ne7 {[%clk 0:02:54]} 11. g5 {[%clk 0:03:02]}  Ng6 {[%clk 0:02:54]} 12. Bd3 {[%clk 0:03:01]}  Bb4 {[%clk 0:02:50]} 13. Bd2 {[%clk 0:03:01]}  d4 {[%clk 0:02:45]} 14. Na4 {[%clk 0:02:56]}  Bxd2+ {[%clk 0:02:45]} 15. Kxd2 {[%clk 0:02:57]}  e5 {[%clk 0:02:42]} 16. g3 {[%clk 0:02:55]}  f6 {[%clk 0:02:37]} 17. gxf6 {[%clk 0:02:52]}  gxf6 {[%clk 0:02:37]} 18. Bc4 {[%clk 0:02:48]}  Kf8 {[%clk 0:02:27]} 19. Raf1 {[%clk 0:02:40]}  Kg7 {[%clk 0:02:24]} 20. f4 {[%clk 0:02:40]}  exf4 {[%clk 0:02:23]} 21. gxf4 {[%clk 0:02:40]}  f5 {[%clk 0:02:20]} 22. Nb6 {[%clk 0:02:35]}  Rb8 {[%clk 0:02:18]} 23. Nxc8 {[%clk 0:02:36]}  Rhxc8 {[%clk 0:02:09]} 24. exf5 {[%clk 0:02:37]}  Ne7 {[%clk 0:01:44]} 25. Rfg1+ {[%clk 0:02:37]}  Kh8 {[%clk 0:01:43]} 26. f6 {[%clk 0:02:35]}  Nf5 {[%clk 0:01:38]} 27. Bd3 {[%clk 0:02:33]}  Rb5 {[%clk 0:01:34]} 28. Bxb5 {[%clk 0:02:33]}  cxb5 {[%clk 0:01:32]} 29. Rg5 {[%clk 0:02:33]}  Ne3 {[%clk 0:01:32]} 30. f7 {[%clk 0:02:25]}  Rf8 {[%clk 0:01:14]} 31. Rhg1 {[%clk 0:02:25]} 1-0


[Site "https://www.chess.com"]

[Event "Titled Tuesday Blitz August 1 Late 2023"]
[White "Sokolovsky, Yahli"]
[Black "Rios Escobar, Adan"]
[WhiteFideId "2820242"]
[BlackFideId "3403645"]
[WhiteElo "2681"]
[BlackElo "2451"]
[Result "0-1"]
[Round "2"]
[TimeControl "180+1"]
[Date "2023.08.01"]
[WhiteClock "0:00:02"]
[BlackClock "0:00:02"]
[Board "63"]

1. b3 {[%clk 0:03:00]}  e5 {[%clk 0:02:47]} 2. Bb2 {[%clk 0:03:01]}  d6 {[%clk 0:02:45]} 3. e3 {[%clk 0:02:42]}  Nf6 {[%clk 0:02:44]} 4. c4 {[%clk 0:02:42]}  c5 {[%clk 0:02:40]} 5. Nc3 {[%clk 0:02:40]}  Nc6 {[%clk 0:02:39]} 6. g3 {[%clk 0:02:30]}  g6 {[%clk 0:02:39]} 7. Bg2 {[%clk 0:02:31]}  Bg7 {[%clk 0:02:39]} 8. Nge2 {[%clk 0:02:31]}  O-O {[%clk 0:02:39]} 9. Nd5 {[%clk 0:02:32]}  Be6 {[%clk 0:02:33]} 10. Nec3 {[%clk 0:02:23]}  a6 {[%clk 0:02:30]} 11. Nxf6+ {[%clk 0:02:17]}  Bxf6 {[%clk 0:02:30]} 12. Nd5 {[%clk 0:02:18]}  Bg7 {[%clk 0:02:30]} 13. h4 {[%clk 0:02:14]}  Rb8 {[%clk 0:02:28]} 14. h5 {[%clk 0:02:10]}  b5 {[%clk 0:02:23]} 15. d3 {[%clk 0:02:05]}  Ne7 {[%clk 0:02:13]} 16. Nxe7+ {[%clk 0:01:31]}  Qxe7 {[%clk 0:02:13]} 17. Qd2 {[%clk 0:01:16]}  Rfd8 {[%clk 0:01:47]} 18. e4 {[%clk 0:01:16]}  Rb7 {[%clk 0:00:56]} 19. Bh3 {[%clk 0:01:14]}  Ra8 {[%clk 0:00:54]} 20. Qc2 {[%clk 0:01:07]}  a5 {[%clk 0:00:44]} 21. Bxe6 {[%clk 0:01:06]}  Qxe6 {[%clk 0:00:44]} 22. cxb5 {[%clk 0:01:06]}  Rxb5 {[%clk 0:00:43]} 23. Qc4 {[%clk 0:01:07]}  Qxc4 {[%clk 0:00:21]} 24. dxc4 {[%clk 0:01:08]}  Rb6 {[%clk 0:00:22]} 25. Kd2 {[%clk 0:01:08]}  a4 {[%clk 0:00:22]} 26. Kc2 {[%clk 0:01:09]}  Rab8 {[%clk 0:00:20]} 27. Bc3 {[%clk 0:00:59]}  axb3+ {[%clk 0:00:20]} 28. axb3 {[%clk 0:01:00]}  Rxb3 {[%clk 0:00:20]} 29. hxg6 {[%clk 0:00:50]}  hxg6 {[%clk 0:00:19]} 30. Ra7 {[%clk 0:00:50]}  R3b7 {[%clk 0:00:19]} 31. Rha1 {[%clk 0:00:50]}  Bf8 {[%clk 0:00:16]} 32. R1a6 {[%clk 0:00:48]}  Rxa7 {[%clk 0:00:15]} 33. Rxa7 {[%clk 0:00:49]}  Kg7 {[%clk 0:00:14]} 34. f4 {[%clk 0:00:49]}  Re8 {[%clk 0:00:10]} 35. Rd7 {[%clk 0:00:39]}  Kf6 {[%clk 0:00:10]} 36. Rc7 {[%clk 0:00:30]}  Ke6 {[%clk 0:00:10]} 37. fxe5 {[%clk 0:00:15]}  dxe5 {[%clk 0:00:11]} 38. Ra7 {[%clk 0:00:13]}  f5 {[%clk 0:00:10]} 39. Ra6+ {[%clk 0:00:12]}  Bd6 {[%clk 0:00:10]} 40. Ba5 {[%clk 0:00:12]}  Rc8 {[%clk 0:00:09]} 41. Kd3 {[%clk 0:00:11]}  Kd7 {[%clk 0:00:07]} 42. Ra7+ {[%clk 0:00:10]}  Ke6 {[%clk 0:00:08]} 43. Ra6 {[%clk 0:00:11]}  Kd7 {[%clk 0:00:07]} 44. Ra7+ {[%clk 0:00:11]}  Ke6 {[%clk 0:00:08]} 45. Rg7 {[%clk 0:00:10]}  Kf6 {[%clk 0:00:08]} 46. Rd7 {[%clk 0:00:11]}  Ke6 {[%clk 0:00:08]} 47. Rg7 {[%clk 0:00:10]}  Kf6 {[%clk 0:00:09]} 48. Ra7 {[%clk 0:00:06]}  Kg5 {[%clk 0:00:06]} 49. Rd7 {[%clk 0:00:06]}  Rc6 {[%clk 0:00:04]} 50. Rg7 {[%clk 0:00:05]}  Bb8 {[%clk 0:00:04]} 51. Rg8 {[%clk 0:00:04]}  Bc7 {[%clk 0:00:03]} 52. Rc8 {[%clk 0:00:04]}  Rd6+ {[%clk 0:00:03]} 53. Kc2 {[%clk 0:00:05]}  Bxa5 {[%clk 0:00:04]} 54. Rxc5 {[%clk 0:00:06]}  Bb4 {[%clk 0:00:02]} 55. Rxe5 {[%clk 0:00:06]}  Rd4 {[%clk 0:00:03]} 56. exf5 {[%clk 0:00:06]}  gxf5 {[%clk 0:00:03]} 57. Kb3 {[%clk 0:00:07]}  Be1 {[%clk 0:00:03]} 58. c5 {[%clk 0:00:06]}  Bxg3 {[%clk 0:00:03]} 59. Re8 {[%clk 0:00:07]}  Rd3+ {[%clk 0:00:02]} 60. Kc4 {[%clk 0:00:07]}  Rd1 {[%clk 0:00:03]} 61. c6 {[%clk 0:00:08]}  Rc1+ {[%clk 0:00:04]} 62. Kb5 {[%clk 0:00:09]}  Kg4 {[%clk 0:00:04]} 63. Rg8+ {[%clk 0:00:09]}  Kf3 {[%clk 0:00:04]} 64. Kb6 {[%clk 0:00:10]}  Be5 {[%clk 0:00:04]} 65. Re8 {[%clk 0:00:10]}  Ke4 {[%clk 0:00:04]} 66. Ra8 {[%clk 0:00:03]}  f4 {[%clk 0:00:04]} 67. Ra4+ {[%clk 0:00:03]}  Kf5 {[%clk 0:00:04]} 68. Ra3 {[%clk 0:00:04]}  Kg4 {[%clk 0:00:04]} 69. Ra4 {[%clk 0:00:04]}  Kg3 {[%clk 0:00:04]} 70. Re4 {[%clk 0:00:05]}  Bd6 {[%clk 0:00:04]} 71. Re6 {[%clk 0:00:05]}  Rd1 {[%clk 0:00:04]} 72. Kb5 {[%clk 0:00:02]}  f3 {[%clk 0:00:04]} 73. Rxd6 {[%clk 0:00:02]}  Rxd6 {[%clk 0:00:04]} 74. c7 {[%clk 0:00:03]}  Rd5+ {[%clk 0:00:04]} 75. Kb4 {[%clk 0:00:03]}  Rd4+ {[%clk 0:00:05]} 76. Kb3 {[%clk 0:00:04]}  Rd3+ {[%clk 0:00:05]} 77. Kc2 {[%clk 0:00:05]}  f2 {[%clk 0:00:03]} 78. c8=Q {[%clk 0:00:05]}  f1=Q {[%clk 0:00:03]} 79. Qg8+ {[%clk 0:00:05]}  Kf2 {[%clk 0:00:03]} 80. Qf7+ {[%clk 0:00:03]}  Rf3 {[%clk 0:00:03]} 81. Qa7+ {[%clk 0:00:04]}  Kg2 {[%clk 0:00:03]} 82. Qg7+ {[%clk 0:00:05]}  Rg3 {[%clk 0:00:03]} 83. Qb7+ {[%clk 0:00:05]}  Qf3 {[%clk 0:00:04]} 84. Qc7 {[%clk 0:00:05]}  Qf2+ {[%clk 0:00:03]} 85. Kc1 {[%clk 0:00:04]}  Qf1+ {[%clk 0:00:04]} 86. Kc2 {[%clk 0:00:05]}  Qe2+ {[%clk 0:00:04]} 87. Kc1 {[%clk 0:00:05]}  Qe3+ {[%clk 0:00:04]} 88. Kc2 {[%clk 0:00:06]}  Qe4+ {[%clk 0:00:04]} 89. Kc1 {[%clk 0:00:06]}  Rf3 {[%clk 0:00:04]} 90. Qg7+ {[%clk 0:00:06]}  Kf2 {[%clk 0:00:04]} 91. Qb2+ {[%clk 0:00:06]}  Qe2 {[%clk 0:00:04]} 92. Qg7 {[%clk 0:00:05]}  Qe3+ {[%clk 0:00:03]} 93. Kc2 {[%clk 0:00:05]}  Qd3+ {[%clk 0:00:03]} 94. Kb2 {[%clk 0:00:06]}  Qb3+ {[%clk 0:00:02]} 95. Ka1 {[%clk 0:00:04]}  Qc3+ {[%clk 0:00:03]} 96. Ka2 {[%clk 0:00:02]}  Qxg7 {[%clk 0:00:02]} 0-1


[Site "https://www.chess.com"]

[Event "Titled Tuesday Blitz August 1 Late 2023"]
[White "Korchmar, Vasiliy"]
[Black "i_like_explosions"]
[WhiteFideId "24131750"]
[WhiteElo "2665"]
[BlackElo "2422"]
[Result "1-0"]
[Round "2"]
[TimeControl "180+1"]
[Date "2023.08.01"]
[WhiteClock "0:00:46"]
[BlackClock "0:00:02"]
[Board "67"]

1. e4 {[%clk 0:02:59]}  c5 {[%clk 0:02:59]} 2. d4 {[%clk 0:02:58]}  cxd4 {[%clk 0:02:59]} 3. Qxd4 {[%clk 0:02:58]}  Nc6 {[%clk 0:02:59]} 4. Qd3 {[%clk 0:02:58]}  Nf6 {[%clk 0:02:59]} 5. Nc3 {[%clk 0:02:57]}  e5 {[%clk 0:02:57]} 6. Bg5 {[%clk 0:02:55]}  Be7 {[%clk 0:02:56]} 7. O-O-O {[%clk 0:02:52]}  d6 {[%clk 0:02:45]} 8. Bxf6 {[%clk 0:02:48]}  gxf6 {[%clk 0:02:45]} 9. Nge2 {[%clk 0:02:42]}  Be6 {[%clk 0:02:45]} 10. Nd5 {[%clk 0:02:39]}  Qd7 {[%clk 0:02:34]} 11. f4 {[%clk 0:02:24]}  O-O-O {[%clk 0:01:40]} 12. f5 {[%clk 0:02:17]}  Bxd5 {[%clk 0:01:39]} 13. Qxd5 {[%clk 0:02:18]}  Bf8 {[%clk 0:01:38]} 14. Kb1 {[%clk 0:02:14]}  h5 {[%clk 0:01:38]} 15. Nc3 {[%clk 0:02:07]}  Ne7 {[%clk 0:01:33]} 16. Qa5 {[%clk 0:02:05]}  Kb8 {[%clk 0:01:31]} 17. Nb5 {[%clk 0:02:02]}  Nc6 {[%clk 0:01:28]} 18. Qa4 {[%clk 0:01:52]}  a6 {[%clk 0:01:21]} 19. Nc3 {[%clk 0:01:49]}  Nd4 {[%clk 0:01:14]} 20. Qa5 {[%clk 0:01:49]}  Rc8 {[%clk 0:00:57]} 21. Nd5 {[%clk 0:01:33]}  Be7 {[%clk 0:00:55]} 22. c3 {[%clk 0:01:22]}  Nc6 {[%clk 0:00:54]} 23. Qa4 {[%clk 0:01:19]}  Rhg8 {[%clk 0:00:49]} 24. Nb6 {[%clk 0:01:18]}  Qc7 {[%clk 0:00:45]} 25. Nxc8 {[%clk 0:01:18]}  Qxc8 {[%clk 0:00:38]} 26. Qb3 {[%clk 0:01:18]}  Rg7 {[%clk 0:00:31]} 27. Bxa6 {[%clk 0:01:18]}  Qc7 {[%clk 0:00:22]} 28. Bb5 {[%clk 0:00:59]}  Na7 {[%clk 0:00:14]} 29. Bc4 {[%clk 0:00:58]}  Bd8 {[%clk 0:00:13]} 30. Bd5 {[%clk 0:00:57]}  Nc8 {[%clk 0:00:07]} 31. h3 {[%clk 0:00:55]}  Nb6 {[%clk 0:00:07]} 32. g4 {[%clk 0:00:53]}  h4 {[%clk 0:00:06]} 33. Rd3 {[%clk 0:00:50]}  Be7 {[%clk 0:00:06]} 34. Rhd1 {[%clk 0:00:50]}  Nd7 {[%clk 0:00:07]} 35. Qb5 {[%clk 0:00:50]}  Nc5 {[%clk 0:00:07]} 36. R3d2 {[%clk 0:00:50]}  Rg8 {[%clk 0:00:03]} 37. Bxf7 {[%clk 0:00:50]}  Rd8 {[%clk 0:00:03]} 38. Bd5 {[%clk 0:00:50]}  Bf8 {[%clk 0:00:03]} 39. a4 {[%clk 0:00:50]}  Bh6 {[%clk 0:00:04]} 40. Re2 {[%clk 0:00:50]}  Bg5 {[%clk 0:00:04]} 41. a5 {[%clk 0:00:50]}  Ka7 {[%clk 0:00:03]} 42. Rc2 {[%clk 0:00:49]}  b6 {[%clk 0:00:04]} 43. b4 {[%clk 0:00:49]}  Na6 {[%clk 0:00:03]} 44. axb6+ {[%clk 0:00:48]}  Qxb6 {[%clk 0:00:03]} 45. Qxb6+ {[%clk 0:00:49]}  Kxb6 {[%clk 0:00:04]} 46. Kb2 {[%clk 0:00:48]}  Nc7 {[%clk 0:00:05]} 47. Kb3 {[%clk 0:00:48]}  Nb5 {[%clk 0:00:05]} 48. Ra2 {[%clk 0:00:47]}  Rc8 {[%clk 0:00:05]} 49. Rd3 {[%clk 0:00:47]}  Bf4 {[%clk 0:00:04]} 50. Bc4 {[%clk 0:00:46]}  Rd8 {[%clk 0:00:02]} 51. Bxb5 {[%clk 0:00:45]}  Kxb5 {[%clk 0:00:03]} 52. Ra5+ {[%clk 0:00:45]}  Kb6 {[%clk 0:00:03]} 53. Rad5 {[%clk 0:00:46]}  Kc6 {[%clk 0:00:04]} 54. c4 {[%clk 0:00:46]}  Bg5 {[%clk 0:00:02]} 55. c5 {[%clk 0:00:46]} 1-0


[Site "https://www.chess.com"]

[Event "Titled Tuesday Blitz August 1 Late 2023"]
[White "Reprintsev, Alexander"]
[Black "Manukyan, Sargis A."]
[WhiteFideId "14100541"]
[BlackFideId "13303970"]
[WhiteElo "2420"]
[BlackElo "2663"]
[Result "1/2-1/2"]
[Round "2"]
[TimeControl "180+1"]
[Date "2023.08.01"]
[WhiteClock "0:00:14"]
[BlackClock "0:00:07"]
[Board "68"]

1. e4 {[%clk 0:03:00]}  c5 {[%clk 0:02:59]} 2. Nf3 {[%clk 0:02:57]}  d6 {[%clk 0:03:00]} 3. c3 {[%clk 0:02:57]}  Nf6 {[%clk 0:02:59]} 4. Bd3 {[%clk 0:02:55]}  Bg4 {[%clk 0:03:00]} 5. Bc2 {[%clk 0:02:54]}  e6 {[%clk 0:03:01]} 6. d3 {[%clk 0:02:54]}  Be7 {[%clk 0:03:01]} 7. Nbd2 {[%clk 0:02:54]}  O-O {[%clk 0:03:02]} 8. h3 {[%clk 0:02:54]}  Bh5 {[%clk 0:03:02]} 9. Nf1 {[%clk 0:02:54]}  Nc6 {[%clk 0:03:01]} 10. Ng3 {[%clk 0:02:54]}  Bg6 {[%clk 0:02:59]} 11. Qe2 {[%clk 0:02:54]}  d5 {[%clk 0:02:59]} 12. Bf4 {[%clk 0:02:52]}  dxe4 {[%clk 0:02:59]} 13. dxe4 {[%clk 0:02:52]}  Nh5 {[%clk 0:02:58]} 14. Nxh5 {[%clk 0:02:51]}  Bxh5 {[%clk 0:02:59]} 15. g4 {[%clk 0:02:50]}  Bg6 {[%clk 0:02:59]} 16. h4 {[%clk 0:02:45]}  h6 {[%clk 0:02:58]} 17. h5 {[%clk 0:02:43]}  Bh7 {[%clk 0:02:58]} 18. Qe3 {[%clk 0:02:43]}  e5 {[%clk 0:02:51]} 19. Nxe5 {[%clk 0:02:36]}  Nxe5 {[%clk 0:02:51]} 20. Bxe5 {[%clk 0:02:36]}  Re8 {[%clk 0:02:50]} 21. Bf4 {[%clk 0:02:12]}  Bg5 {[%clk 0:02:44]} 22. Bxg5 {[%clk 0:02:09]}  hxg5 {[%clk 0:02:33]} 23. h6 {[%clk 0:02:09]}  Qd7 {[%clk 0:02:02]} 24. f3 {[%clk 0:02:03]}  Qe7 {[%clk 0:01:47]} 25. O-O-O {[%clk 0:02:00]}  b5 {[%clk 0:01:38]} 26. hxg7 {[%clk 0:01:59]}  Kxg7 {[%clk 0:01:37]} 27. Rh5 {[%clk 0:01:56]}  f6 {[%clk 0:01:33]} 28. Rxh7+ {[%clk 0:01:17]}  Kxh7 {[%clk 0:01:32]} 29. e5+ {[%clk 0:01:17]}  Kg7 {[%clk 0:01:29]} 30. Qe4 {[%clk 0:01:15]}  Kf8 {[%clk 0:00:42]} 31. Rh1 {[%clk 0:00:49]}  Qxe5 {[%clk 0:00:13]} 32. Rh8+ {[%clk 0:00:48]}  Ke7 {[%clk 0:00:13]} 33. Qb7+ {[%clk 0:00:47]}  Kd6 {[%clk 0:00:13]} 34. Rxe8 {[%clk 0:00:25]}  Rxe8 {[%clk 0:00:07]} 35. Be4 {[%clk 0:00:26]}  Qf4+ {[%clk 0:00:07]} 36. Kc2 {[%clk 0:00:26]}  Qh2+ {[%clk 0:00:06]} 37. Kb3 {[%clk 0:00:25]}  c4+ {[%clk 0:00:07]} 38. Ka3 {[%clk 0:00:25]}  Qf2 {[%clk 0:00:07]} 39. Qc6+ {[%clk 0:00:20]}  Ke7 {[%clk 0:00:07]} 40. Bg6 {[%clk 0:00:18]}  Rd8 {[%clk 0:00:06]} 41. Qxb5 {[%clk 0:00:17]}  Qb6 {[%clk 0:00:05]} 42. Qxc4 {[%clk 0:00:18]}  Qd6+ {[%clk 0:00:06]} 43. Qb4 {[%clk 0:00:17]}  a5 {[%clk 0:00:06]} 44. Qxd6+ {[%clk 0:00:17]}  Rxd6 {[%clk 0:00:06]} 45. Be4 {[%clk 0:00:18]}  Rd2 {[%clk 0:00:06]} 46. b4 {[%clk 0:00:18]}  axb4+ {[%clk 0:00:06]} 47. cxb4 {[%clk 0:00:19]}  Kd6 {[%clk 0:00:07]} 48. Kb3 {[%clk 0:00:19]}  Kc7 {[%clk 0:00:07]} 49. a4 {[%clk 0:00:19]}  Kb6 {[%clk 0:00:07]} 50. a5+ {[%clk 0:00:19]}  Kb5 {[%clk 0:00:06]} 51. Kc3 {[%clk 0:00:20]}  Rd1 {[%clk 0:00:06]} 52. Bd3+ {[%clk 0:00:20]}  Kc6 {[%clk 0:00:06]} 53. b5+ {[%clk 0:00:21]}  Kc5 {[%clk 0:00:06]} 54. b6 {[%clk 0:00:21]}  Kc6 {[%clk 0:00:05]} 55. Be4+ {[%clk 0:00:21]}  Kd6 {[%clk 0:00:05]} 56. b7 {[%clk 0:00:21]}  Kc7 {[%clk 0:00:05]} 57. a6 {[%clk 0:00:20]}  Ra1 {[%clk 0:00:05]} 58. Bd3 {[%clk 0:00:20]}  Ra5 {[%clk 0:00:04]} 59. Kd4 {[%clk 0:00:21]}  Re5 {[%clk 0:00:04]} 60. Be4 {[%clk 0:00:18]}  Ra5 {[%clk 0:00:03]} 61. Bd3 {[%clk 0:00:19]}  Re5 {[%clk 0:00:03]} 62. Bc4 {[%clk 0:00:19]}  Kb8 {[%clk 0:00:03]} 63. Bd5 {[%clk 0:00:18]}  Ka7 {[%clk 0:00:03]} 64. Bc4 {[%clk 0:00:19]}  Ra5 {[%clk 0:00:03]} 65. Ke4 {[%clk 0:00:18]}  Re5+ {[%clk 0:00:03]} 66. Kd3 {[%clk 0:00:18]}  Ra5 {[%clk 0:00:03]} 67. Kd4 {[%clk 0:00:18]}  Re5 {[%clk 0:00:03]} 68. Bd3 {[%clk 0:00:18]}  Ra5 {[%clk 0:00:04]} 69. Ke3 {[%clk 0:00:18]}  Ra4 {[%clk 0:00:04]} 70. Kf2 {[%clk 0:00:17]}  Ra3 {[%clk 0:00:05]} 71. Be2 {[%clk 0:00:17]}  Ra2 {[%clk 0:00:05]} 72. Ke3 {[%clk 0:00:17]}  Ra4 {[%clk 0:00:06]} 73. Bd3 {[%clk 0:00:17]}  Rb4 {[%clk 0:00:06]} 74. Be2 {[%clk 0:00:15]}  Ra4 {[%clk 0:00:06]} 75. Kf2 {[%clk 0:00:15]}  Ra3 {[%clk 0:00:06]} 76. Kg3 {[%clk 0:00:15]}  Re3 {[%clk 0:00:06]} 77. Bc4 {[%clk 0:00:15]}  Rc3 {[%clk 0:00:06]} 78. Bf1 {[%clk 0:00:15]}  Rc1 {[%clk 0:00:06]} 79. Be2 {[%clk 0:00:15]}  Rc2 {[%clk 0:00:07]} 80. Kf2 {[%clk 0:00:15]}  Rc3 {[%clk 0:00:07]} 81. Ke1 {[%clk 0:00:15]}  Ra3 {[%clk 0:00:07]} 82. Kd2 {[%clk 0:00:16]}  Kb8 {[%clk 0:00:06]} 83. Bd3 {[%clk 0:00:16]}  Ka7 {[%clk 0:00:06]} 84. Ke3 {[%clk 0:00:17]}  Ra4 {[%clk 0:00:07]} 85. Ke2 {[%clk 0:00:15]}  Rb4 {[%clk 0:00:07]} 86. Kd2 {[%clk 0:00:15]}  Ra4 {[%clk 0:00:06]} 87. Kc3 {[%clk 0:00:16]}  Ra3+ {[%clk 0:00:06]} 88. Kd4 {[%clk 0:00:16]}  Ra5 {[%clk 0:00:07]} 89. Bc4 {[%clk 0:00:15]}  Re5 {[%clk 0:00:07]} 90. Bd3 {[%clk 0:00:14]}  Ra5 {[%clk 0:00:07]} 1/2-1/2


[Site "https://www.chess.com"]